Workbook

Sheet GOV List Price
H1: 0.41
A2: Manufacturer Part # | B2: MODEL | C2: Product Description | D2: Alpha Code | E2: Product Type | F2: Product Discount Code | G2: GOV List Price | H2: NASPO Discount | I2: NASPO Net Price | J2: Meets Buy America
A3: SPOA10 | B3: SPOA10N1400BL | C3: Lift, 2-post 10,000 lb Asym 2-stage w/flip-up adapters | D3: SPOA10 | E3: LIGHT DUTY | F3: LS | G3: 8922 | H3: =$H$1 -> 0.41 | I3: =Table8[[#This Row],[GOV List Price]]*(1-Table8[[#This Row],[NASPO Discount]]) -> 5263.98 | J3: Yes
A4: SPOA10 71" | B4: SPOA10N1405BL | C4: Lift, 2-post 10,000 lb Asym 2-stage w/flip-up adapters, 71" Rise | D4: SPOA10 | E4: LIGHT DUTY | F4: LS | G4: 9294 | H4: 0.41 | I4: =Table8[[#This Row],[GOV List Price]]*(1-Table8[[#This Row],[NASPO Discount]]) -> 5483.46 | J4: Yes
A5: SPOA10 EH2 | B5: SPOA10N1407BL | C5: Lift, 2-post 10,000 lb Asym 2-stage w/flip-up adapters EH2 | D5: SPOA10 | E5: LIGHT DUTY | F5: LS | G5: 10095 | H5: 0.41 | I5: =Table8[[#This Row],[GOV List Price]]*(1-Table8[[#This Row],[NASPO Discount]]) -> 5956.05 | J5: Yes
A6: SPOA10-RA | B6: SPOA10N16G0BL | C6: Lift, 2-post 10,000 lb Asym w/TRIO rubber adapters (To use with framed vehicles, also order T100273.) | D6: SPOA10 | E6: LIGHT DUTY | F6: PS | G6: 11435 | H6: 0.41 | I6: =Table8[[#This Row],[GOV List Price]]*(1-Table8[[#This Row],[NASPO Discount]]) -> 6746.65 | J6: Yes
A7: SPOA10-RA 71" | B7: SPOA10N16G5BL | C7: Lift, 2-post 10,000 lb Asym w/TRIO rubber adapters 71" Rise | D7: SPOA10 | E7: LIGHT DUTY | F7: PS | G7: 11877 | H7: 0.41 | I7: =Table8[[#This Row],[GOV List Price]]*(1-Table8[[#This Row],[NASPO Discount]]) -> 7007.43 | J7: Yes
A8: SPOA10-RA EH2 | B8: SPOA10N16G7BL | C8: Lift, 2-post 10,000 lb Asym w/TRIO rubber adapters EH2 | D8: SPOA10 | E8: LIGHT DUTY | F8: PS | G8: 12816 | H8: 0.41 | I8: =Table8[[#This Row],[GOV List Price]]*(1-Table8[[#This Row],[NASPO Discount]]) -> 7561.44 | J8: Yes
A9: SPOA10-TA | B9: SPOA10N16T0BL | C9: Lift, 2-post 10,000 lb Asym w/TRIO truck adapters. Includes (4) 3 1/2" T130660 extensions and (4) 5" T130661 extensions. | D9: SPOA10 | E9: LIGHT DUTY | F9: PS | G9: 11435 | H9: 0.41 | I9: =Table8[[#This Row],[GOV List Price]]*(1-Table8[[#This Row],[NASPO Discount]]) -> 6746.65 | J9: Yes
A10: SPOA10-TA 71" | B10: SPOA10N16T5BL | C10: Lift, 2-post 10,000 lb Asym w/TRIO truck adapters 71" Rise | D10: SPOA10 | E10: LIGHT DUTY | F10: PS | G10: 11877 | H10: 0.41 | I10: =Table8[[#This Row],[GOV List Price]]*(1-Table8[[#This Row],[NASPO Discount]]) -> 7007.43 | J10: Yes
A11: SPOA10-TA EH2 | B11: SPOA10N16T7BL | C11: Lift, 2-post 10,000 lb Asym w/TRIO truck adapters EH2 | D11: SPOA10 | E11: LIGHT DUTY | F11: PS | G11: 12816 | H11: 0.41 | I11: =Table8[[#This Row],[GOV List Price]]*(1-Table8[[#This Row],[NASPO Discount]]) -> 7561.44 | J11: Yes
A12: SPOA10-FA | B12: SPOA10N1600BL | C12: Lift, 2-post 10,000 lb Asym w/TRIO flip-up adapters | D12: SPOA10 | E12: LIGHT DUTY | F12: PS | G12: 11435 | H12: 0.41 | I12: =Table8[[#This Row],[GOV List Price]]*(1-Table8[[#This Row],[NASPO Discount]]) -> 6746.65 | J12: Yes
A13: SPOA10-FA 71" | B13: SPOA10N1605BL | C13: Lift, 2-post 10,000 lb Asym w/TRIO flip-up adapters 71" Rise | D13: SPOA10 | E13: LIGHT DUTY | F13: PS | G13: 11877 | H13: 0.41 | I13: =Table8[[#This Row],[GOV List Price]]*(1-Table8[[#This Row],[NASPO Discount]]) -> 7007.43 | J13: Yes
A14: SPOA10-FA EH2 | B14: SPOA10N1607BL | C14: Lift, 2-post 10,000 lb Asym w/TRIO flip-up adapters EH2 | D14: SPOA10 | E14: LIGHT DUTY | F14: PS | G14: 12816 | H14: 0.41 | I14: =Table8[[#This Row],[GOV List Price]]*(1-Table8[[#This Row],[NASPO Discount]]) -> 7561.44 | J14: Yes
A15: SPOA7-LP-A | B15: SPOA7N5L0BL | C15: Lift, 2-post 7000 lb Asym 2-stage low profile RA arms | D15: SPOA7 | E15: LIGHT DUTY | F15: LS | G15: 9877 | H15: 0.41 | I15: =Table8[[#This Row],[GOV List Price]]*(1-Table8[[#This Row],[NASPO Discount]]) -> 5827.43 | J15: Yes
A16: SPOA7-LPA 71" | B16: SPOA7N5L5BL | C16: Lift, 2-post 7000 lb Asym 2-stage low profile RA arms 71" Rise | D16: SPOA7 | E16: LIGHT DUTY | F16: LS | G16: 10256 | H16: 0.41 | I16: =Table8[[#This Row],[GOV List Price]]*(1-Table8[[#This Row],[NASPO Discount]]) -> 6051.04 | J16: Yes
A17: SPOA7-LPA EH2 | B17: SPOA7N5L7BL | C17: Lift, 2-post 7000 lb Asym 2-stage low profile RA arms EH2 | D17: SPOA7 | E17: 0 | F17: 0 | G17: 11067 | H17: 0.41 | I17: =Table8[[#This Row],[GOV List Price]]*(1-Table8[[#This Row],[NASPO Discount]]) -> 6529.53 | J17: Yes
A18: SPOA7-MP | B18: SPOA7N13X0BL | C18: Lift, 2-post 7000 lb Asym Movable Pad Drive Over. Includes (4) FJ2428E spacer blocks and hinged approach ramps. Primarily used on unibody vehicles. | D18: SPOA7 | E18: LIGHT DUTY | F18: PS | G18: 13347 | H18: 0.41 | I18: =Table8[[#This Row],[GOV List Price]]*(1-Table8[[#This Row],[NASPO Discount]]) -> 7874.73 | J18: Yes
A19: SPOA7-MP 71" | B19: SPOA7N13X5BL | C19: Lift, 2-post 7000 lb Asym Movable Pad Drive Over 71" Rise | D19: SPOA7 | E19: LIGHT DUTY | F19: PS | G19: 15884 | H19: 0.41 | I19: =Table8[[#This Row],[GOV List Price]]*(1-Table8[[#This Row],[NASPO Discount]]) -> 9371.56 | J19: Yes
A20: SPOA7-MP EH2 | B20: SPOA7N13X7BL | C20: Lift, 2-post 7000 lb Asym Movable Pad Drive Over EH2 | D20: SPOA7 | E20: LIGHT DUTY | F20: PS | G20: 14518 | H20: 0.41 | I20: =Table8[[#This Row],[GOV List Price]]*(1-Table8[[#This Row],[NASPO Discount]]) -> 8565.62 | J20: Yes
A21: SPO10 | B21: SPO10N1400BL | C21: Lift, 2-post 10,000 lb Sym 2-stage w/flip-up adapters | D21: SPO10 | E21: LIGHT DUTY | F21: LS | G21: 8922 | H21: 0.41 | I21: =Table8[[#This Row],[GOV List Price]]*(1-Table8[[#This Row],[NASPO Discount]]) -> 5263.98 | J21: Yes
A22: SPO10 71" | B22: SPO10N1405BL | C22: Lift, 2-post 10,000 lb Sym 2-stage w/flip-up adapters 71" Rise | D22: SPO10 | E22: LIGHT DUTY | F22: LS | G22: 9294 | H22: 0.41 | I22: =Table8[[#This Row],[GOV List Price]]*(1-Table8[[#This Row],[NASPO Discount]]) -> 5483.46 | J22: Yes
A23: SPO10 EH2 | B23: SPO10N1407BL | C23: Lift, 2-post 10,000 lb Sym 2-stage w/flip-up adapters EH2 | D23: SPO10 | E23: LIGHT DUTY | F23: LS | G23: 10095 | H23: 0.41 | I23: =Table8[[#This Row],[GOV List Price]]*(1-Table8[[#This Row],[NASPO Discount]]) -> 5956.05 | J23: Yes
A24: SPO12-TA | B24: SPO12N14T5BL | C24: Lift, 2-post 12,000 lb Sym 3-stage. Includes (4) 3 1/2" FJ6171-1 extensions and (4) 5" FJ6171-2 extensions. | D24: SPO12 | E24: LIGHT DUTY | F24: PS | G24: 14472 | H24: 0.41 | I24: =Table8[[#This Row],[GOV List Price]]*(1-Table8[[#This Row],[NASPO Discount]]) -> 8538.48 | J24: Yes
A25: SPO12-TA EH1 | B25: SPO12N14T6BL | C25: Lift, 2-post 12,000 lb Sym 3-stage EH1 | D25: SPO12 | E25: LIGHT DUTY | F25: PS | G25: 15663 | H25: 0.41 | I25: =Table8[[#This Row],[GOV List Price]]*(1-Table8[[#This Row],[NASPO Discount]]) -> 9241.17 | J25: Yes
A26: SPO12-TA EH2 | B26: SPO12N14T7BL | C26: Lift, 2-post 12,000 lb Sym 3-stage EH2 | D26: SPO12 | E26: LIGHT DUTY | F26: PS | G26: 16096 | H26: 0.41 | I26: =Table8[[#This Row],[GOV List Price]]*(1-Table8[[#This Row],[NASPO Discount]]) -> 9496.64 | J26: Yes
A27: SPO12-TA EH3 | B27: SPO12N14T8BL | C27: Lift, 2-post 12,000 lb Sym 3-stage EH3 | D27: SPO12 | E27: LIGHT DUTY | F27: PS | G27: 16910 | H27: 0.41 | I27: =Table8[[#This Row],[GOV List Price]]*(1-Table8[[#This Row],[NASPO Discount]]) -> 9976.9 | J27: Yes
A28: SPO12-TALC | B28: SPO12N14TLBL | C28: Lift, 2-post 12,000 lb Sym 3-stage low ceiling | D28: SPO12 | E28: LIGHT DUTY | F28: PS | G28: 15170 | H28: 0.41 | I28: =Table8[[#This Row],[GOV List Price]]*(1-Table8[[#This Row],[NASPO Discount]]) -> 8950.3 | J28: Yes
A29: SPO12-WIDE | B29: SPO12N14W6BL | C29: Lift, 2-post 12,000 lb Sym 3-stage wide | D29: SPO12 | E29: LIGHT DUTY | F29: PS | G29: 16217 | H29: 0.41 | I29: =Table8[[#This Row],[GOV List Price]]*(1-Table8[[#This Row],[NASPO Discount]]) -> 9568.03 | J29: Yes
A30: SPO12-WIDE-EH1 | B30: SPO12N14W7BL | C30: Lift, 2-post 12,000 lb Sym 3-stage wide EH1 | D30: SPO12 | E30: LIGHT DUTY | F30: PS | G30: 17012 | H30: 0.41 | I30: =Table8[[#This Row],[GOV List Price]]*(1-Table8[[#This Row],[NASPO Discount]]) -> 10037.08 | J30: Yes
A31: FJ5115 | B31: FJ6115BK | C31: Adapter kit, aircraft tug lift, 14,000 lb | D31: FJ6115 | E31: ACC. | F31: AC | G31: 723 | H31: 0.25 | I31: =Table8[[#This Row],[GOV List Price]]*(1-Table8[[#This Row],[NASPO Discount]]) -> 542.25 | J31: Yes
A32: SPO16 | B32: SPO16N1T0BL | C32: Lift, 2-post 16,000 lb, Single Phase (no 3-phase) Frame Contact Lift. Clear Floor, All TRIO (TM) Arms, Electric-Hydraulic Operation. With Overhead Adjustments of 15 ft., 15 ft. 6 in., 16 ft. and 16 ft. 6 in. Air Operated Single Point Release Locking Latches. Comes with Stack Adapters. | D32: SPO16 | E32: CROSS-OVER | F32: PC | G32: 36768 | H32: =$H$1 -> 0.41 | I32: =Table8[[#This Row],[GOV List Price]]*(1-Table8[[#This Row],[NASPO Discount]]) -> 21693.12 | J32: Yes
A33: SPO16CARGO | B33: SPO16N1A0BL | C33: Lift, 2-post 16,000 lb. 3 Stage Arms | D33: SPO16 | E33: CROSS-OVER | F33: PC | G33: 36768 | H33: 0.41 | I33: =Table8[[#This Row],[GOV List Price]]*(1-Table8[[#This Row],[NASPO Discount]]) -> 21693.12 | J33: Yes
A34: SPO16-LC | B34: SPO16N1TLBL | C34: Lift, 2-post 16,000 lb. low ceiling with overhead adjustments of 13 ft. 6 in. and 14 ft. 6 in. | D34: SPO16 | E34: CROSS-OVER | F34: PC | G34: 36768 | H34: 0.41 | I34: =Table8[[#This Row],[GOV List Price]]*(1-Table8[[#This Row],[NASPO Discount]]) -> 21693.12 | J34: Yes
A35: SPO16CARGO-LC | B35: SPO16N1ALBL | C35: Lift, 2-post 16,000 lb. low ceiling with overhead adjustments of 13 ft. 6 in. and 14 ft. 6 in. 3 Stage Arms | D35: SPO16 | E35: CROSS-OVER | F35: PC | G35: 36768 | H35: 0.41 | I35: =Table8[[#This Row],[GOV List Price]]*(1-Table8[[#This Row],[NASPO Discount]]) -> 21693.12 | J35: Yes
A36: SPO20 | B36: SPO20N1T0BL | C36: Lift, 2-post 20,000 lb, Single Phase (no 3-phase) Frame Contact Lift. Clear Floor, All TRIO (TM) Arms, Electric-Hydraulic Operation. With Overhead Adjustments of 15 ft., 15 ft. 6 in., 16 ft. and 16 ft. 6 in. Air Operated Single Point Release Locking Latches. Comes with Stack Adapters. | D36: SPO20 | E36: CROSS-OVER | F36: PC | G36: 45584 | H36: 0.41 | I36: =Table8[[#This Row],[GOV List Price]]*(1-Table8[[#This Row],[NASPO Discount]]) -> 26894.56 | J36: Yes
A37: SPO20-LC | B37: SPO20N1TLBL | C37: Lift, 2-post 20,000 lb. low ceiling with overhead adjustments of 13 ft. 6 in. and 14 ft. 6 in. | D37: SPO20 | E37: CROSS-OVER | F37: PC | G37: 45584 | H37: 0.41 | I37: =Table8[[#This Row],[GOV List Price]]*(1-Table8[[#This Row],[NASPO Discount]]) -> 26894.56 | J37: Yes
A38: SPOA10-RASW | B38: SPOA10U16G5BL | C38: Lift, 2-post 10,000 lb Asym w/TRIO rubber adapters, SW (To use with framed vehicles, also order T100273.) | D38: SPOA10 | E38: 0 | F38: 0 | G38: 15657 | H38: 0.41 | I38: =Table8[[#This Row],[GOV List Price]]*(1-Table8[[#This Row],[NASPO Discount]]) -> 9237.63 | J38: Yes
A39: SPOA10-TASW EH2 | B39: SPOA10U16T7BL | C39: Lift, 2-post 10,000 lb Asym w/TRIO truck adapters, SW EH2 | D39: SPOA10 | E39: 0 | F39: 0 | G39: 17032 | H39: 0.41 | I39: =Table8[[#This Row],[GOV List Price]]*(1-Table8[[#This Row],[NASPO Discount]]) -> 10048.88 | J39: Yes
A40: SPOA10-FASW | B40: SPOA10U1605BL | C40: Lift, 2-post 10,000 lb Asym w/TRIO flip-up adapters, SW | D40: SPOA10 | E40: 0 | F40: 0 | G40: 15657 | H40: 0.41 | I40: =Table8[[#This Row],[GOV List Price]]*(1-Table8[[#This Row],[NASPO Discount]]) -> 9237.63 | J40: Yes
A41: SPOA7-MPSW | B41: SPOA7U13X5BL | C41: Lift, 2-post 7000 lb Asym w/movable pads, SW Includes (4) FJ2428E spacer blocks and hinged approach ramps. Primarily used on unibody vehicles. | D41: SPOA7 | E41: 0 | F41: 0 | G41: 18975 | H41: 0.41 | I41: =Table8[[#This Row],[GOV List Price]]*(1-Table8[[#This Row],[NASPO Discount]]) -> 11195.25 | J41: Yes
A42: SPO12-SW | B42: SPO12U14T5BL | C42: Lift, 2-post 12,000 lb Sym 3-stage SW Includes (4) 3 1/2" FJ6171-1 extensions and (4) 5" FJ6171-2 extensions. | D42: SPO12 | E42: 0 | F42: 0 | G42: 18090 | H42: 0.41 | I42: =Table8[[#This Row],[GOV List Price]]*(1-Table8[[#This Row],[NASPO Discount]]) -> 10673.1 | J42: Yes
A43: SPO12-SW EH2 | B43: SPO12U14T7BL | C43: Lift, 2-post 12,000 lb Sym 3-stage SW EH2 | D43: SPO12 | E43: 0 | F43: 0 | G43: 19713 | H43: 0.41 | I43: =Table8[[#This Row],[GOV List Price]]*(1-Table8[[#This Row],[NASPO Discount]]) -> 11630.67 | J43: Yes
A44: SPO16-SW | B44: SPO16U1T0BL | C44: Lift, 2-post 16,000 lb. Shockwave DC Controls & Power. | D44: SPO16 | E44: CROSS-OVER | F44: PC | G44: 42456 | H44: 0.41 | I44: =Table8[[#This Row],[GOV List Price]]*(1-Table8[[#This Row],[NASPO Discount]]) -> 25049.04 | J44: Yes
A45: SPO20-SW | B45: SPO20U1T0BL | C45: Lift, 2-post 20,000 lb. Shockwave DC Controls & Power. | D45: SPO20 | E45: CROSS-OVER | F45: PC | G45: 50782 | H45: 0.41 | I45: =Table8[[#This Row],[GOV List Price]]*(1-Table8[[#This Row],[NASPO Discount]]) -> 29961.38 | J45: Yes
A46: FJ7923 | B46: FJ7923 | C46: Latch cable, SS | D46: FJ7923 | E46: ACC. | F46: AC | G46: 102 | H46: 0.25 | I46: =Table8[[#This Row],[GOV List Price]]*(1-Table8[[#This Row],[NASPO Discount]]) -> 76.5 | J46: Yes
A47: FA595 | B47: FA595BL | C47: Power unit splash guard | D47: FA595 | E47: ACC. | F47: AC | G47: 133 | H47: 0.25 | I47: =Table8[[#This Row],[GOV List Price]]*(1-Table8[[#This Row],[NASPO Discount]]) -> 99.75 | J47: Yes
A48: FA7129 | B48: FA7129BK | C48: Power unit bracket extension | D48: FA7129BK | E48: ACC. | F48: AC | G48: 87 | H48: 0.25 | I48: =Table8[[#This Row],[GOV List Price]]*(1-Table8[[#This Row],[NASPO Discount]]) -> 65.25 | J48: Yes
A49: FA5208 | B49: FA5208BK | C49: • Seismic model of the DC(SW) SPOA10 Std. Hgt. lift with TA and RA arms | D49: FA5208BK | E49: ACC. | F49: AC | G49: 568 | H49: 0.25 | I49: =Table8[[#This Row],[GOV List Price]]*(1-Table8[[#This Row],[NASPO Discount]]) -> 426 | J49: Yes
A50: N2244YL | B50: N2244YL | C50: Arm kit, 3-stage telescoping arm kit for SPOA9 and SPOA7 200-400 | D50: N2244 | E50: ACC. | F50: AC | G50: 3202 | H50: 0.25 | I50: =Table8[[#This Row],[GOV List Price]]*(1-Table8[[#This Row],[NASPO Discount]]) -> 2401.5 | J50: Yes
A51: FJ6227 | B51: FJ6227BL | C51: Retrofit kit, Movable pad for SPOA10-500 series and above. Reduces lift capacity to 7,000 lbs. | D51: FJ6227BL | E51: ACC. | F51: AC | G51: 8310 | H51: 0.25 | I51: =Table8[[#This Row],[GOV List Price]]*(1-Table8[[#This Row],[NASPO Discount]]) -> 6232.5 | J51: Yes
A52: SMO14L | B52: SMO14N101YBL | C52: Lift, 4-post 14,000 lb open front, 182" max wheel base | D52: SMO14T | E52: 0 | F52: 0 | G52: 19573 | H52: =$H$1 -> 0.41 | I52: =Table8[[#This Row],[GOV List Price]]*(1-Table8[[#This Row],[NASPO Discount]]) -> 11548.07 | J52: No
A53: SMO14EL2 | B53: SMO14N102YBL | C53: Lift, 4-post 14,000 lb open front, 215" max wheel base | D53: SMO14T | E53: LIGHT DUTY | F53: LS | G53: 20571 | H53: 0.41 | I53: =Table8[[#This Row],[GOV List Price]]*(1-Table8[[#This Row],[NASPO Discount]]) -> 12136.89 | J53: No
A54: SM14L | B54: SM14N101YBL | C54: Lift, 4-post 14,000 lb, 182" max wheel base | D54: SM14T | E54: LIGHT DUTY | F54: LS | G54: 15052 | H54: 0.41 | I54: =Table8[[#This Row],[GOV List Price]]*(1-Table8[[#This Row],[NASPO Discount]]) -> 8880.68 | J54: No
A55: SM14EL2 | B55: SM14N102YBL | C55: Lift, 4-post 14,000 lb, 215" max wheel base | D55: SM14T | E55: LIGHT DUTY | F55: LS | G55: 16023 | H55: 0.41 | I55: =Table8[[#This Row],[GOV List Price]]*(1-Table8[[#This Row],[NASPO Discount]]) -> 9453.57 | J55: No
A56: SM18 | B56: SM18N000BL | C56: Lift, 4-post 18,000 lb, 194" max wheel base | D56: SM18 | E56: CROSS-OVER | F56: CL | G56: 24847 | H56: 0.41 | I56: =Table8[[#This Row],[GOV List Price]]*(1-Table8[[#This Row],[NASPO Discount]]) -> 14659.73 | J56: No
A57: SM18-EL2 | B57: SM18N001BL | C57: Lift, 4-post 18,000 lb, 230" max wheel base | D57: SM18 | E57: CROSS-OVER | F57: CL | G57: 27220 | H57: 0.41 | I57: =Table8[[#This Row],[GOV List Price]]*(1-Table8[[#This Row],[NASPO Discount]]) -> 16059.8 | J57: No
A58: RFL25 | B58: RFL25N010BL | C58: Lift, 4-post 25,000 lb, 163" max wheel base, Forklift Lift | D58: RFL25 | E58: CROSS-OVER | F58: CL | G58: 61684 | H58: 0.41 | I58: =Table8[[#This Row],[GOV List Price]]*(1-Table8[[#This Row],[NASPO Discount]]) -> 36393.56 | J58: No
A59: SM30-S | B59: SM30N010BL | C59: Lift, 4-post 30,000 lb, 235" max wheel base | D59: SM30 | E59: CROSS-OVER | F59: CL | G59: 46396 | H59: 0.41 | I59: =Table8[[#This Row],[GOV List Price]]*(1-Table8[[#This Row],[NASPO Discount]]) -> 27373.64 | J59: No
A60: SM30-L | B60: SM30N011BL | C60: Lift, 4-post 30,000 lb, 271" max wheel base | D60: SM30 | E60: CROSS-OVER | F60: CL | G60: 50617 | H60: 0.41 | I60: =Table8[[#This Row],[GOV List Price]]*(1-Table8[[#This Row],[NASPO Discount]]) -> 29864.03 | J60: No
A61: SM30-EL3 | B61: SM30N012BL | C61: Lift, 4-post 30,000 lb, 307" max wheel base | D61: SM30 | E61: CROSS-OVER | F61: CL | G61: 54836 | H61: 0.41 | I61: =Table8[[#This Row],[GOV List Price]]*(1-Table8[[#This Row],[NASPO Discount]]) -> 32353.24 | J61: No
A62: SMO14L-SW | B62: SMO14U101TYBL | C62: Lift, 4-post 14,000 lb open front, 182" max wheel base SW | D62: SMO14T | E62: 0 | F62: 0 | G62: 23427 | H62: 0.41 | I62: =Table8[[#This Row],[GOV List Price]]*(1-Table8[[#This Row],[NASPO Discount]]) -> 13821.93 | J62: No
A63: SMO14EL2-SW | B63: SMO14U102TYBL | C63: Lift, 4-post 14,000 lb open front, 215" max wheel base SW | D63: SMO14T | E63: LIGHT DUTY | F63: PS | G63: 24426 | H63: 0.41 | I63: =Table8[[#This Row],[GOV List Price]]*(1-Table8[[#This Row],[NASPO Discount]]) -> 14411.34 | J63: No
A64: SM14L-SW | B64: SM14U101YBL | C64: Lift, 4-post 14,000 lb, 182" max wheel base SW | D64: SM14T | E64: LIGHT DUTY | F64: PS | G64: 19109 | H64: 0.41 | I64: =Table8[[#This Row],[GOV List Price]]*(1-Table8[[#This Row],[NASPO Discount]]) -> 11274.31 | J64: No
A65: SM14EL2-SW | B65: SM14U102YBL | C65: Lift, 4-post 14,000 lb, 215" max wheel base SW | D65: SM14T | E65: LIGHT DUTY | F65: PL | G65: 20077 | H65: 0.41 | I65: =Table8[[#This Row],[GOV List Price]]*(1-Table8[[#This Row],[NASPO Discount]]) -> 11845.43 | J65: No
A66: X14 | B66: X14N0010BL | C66: Surface mounted lift, 14,000 lb general service, 198" max wheel base - Available in blue only | D66: 0 | E66: 0 | F66: 0 | G66: 41106 | H66: 0.41 | I66: =Table8[[#This Row],[GOV List Price]]*(1-Table8[[#This Row],[NASPO Discount]]) -> 24252.54 | J66: Yes
A67: X14-FM | B67: X14N0011BL | C67: Flush mount lift, 14,000 lb general service, 198" max wheel base - Available in blue only | D67: 0 | E67: 0 | F67: 0 | G67: 41106 | H67: 0.41 | I67: =Table8[[#This Row],[GOV List Price]]*(1-Table8[[#This Row],[NASPO Discount]]) -> 24252.54 | J67: Yes
A68: FC5974 | B68: FC5974BL | C68: Filler plate, radius gauge, 17.5" opening KIT OF TWO | D68: FC5974BL | E68: ACC. | F68: AC | G68: 512 | H68: 0.25 | I68: =Table8[[#This Row],[GOV List Price]]*(1-Table8[[#This Row],[NASPO Discount]]) -> 384 | J68: Yes
A69: FC5102 | B69: FC5102BL | C69: Filler plate, radius gauge, 18 5/16" opening KIT OF TWO | D69: FC5102 | E69: ACC. | F69: AC | G69: 431 | H69: 0.25 | I69: =Table8[[#This Row],[GOV List Price]]*(1-Table8[[#This Row],[NASPO Discount]]) -> 323.25 | J69: Yes
A70: RJ6000Y-R | B70: RJ6100YM | C70: Rolling Jack, 6000 lb. SM121, SM/SMO122 and AR/ARO122 Prior to April 2000 | D70: RJ6100YM | E70: ACC. | F70: AC | G70: 6395 | H70: 0.25 | I70: =Table8[[#This Row],[GOV List Price]]*(1-Table8[[#This Row],[NASPO Discount]]) -> 4796.25 | J70: Yes
A71: RJ7000Y | B71: RJ7100YM | C71: Rolling Jack, 7000 lb. Includes rubber adapter blocks: (2) 1.5” tall FJ2427E and (2) 3” tall FJ2428E. | D71: RJ7100YM | E71: ACC. | F71: AC | G71: 7047 | H71: 0.25 | I71: =Table8[[#This Row],[GOV List Price]]*(1-Table8[[#This Row],[NASPO Discount]]) -> 5285.25 | J71: Yes
A72: RJ9000YBK | B72: RJ9100YM | C72: Rolling Jack, 9000 lb. For SM18, Includes rubber adapter blocks: (2) .5” tall SB700071Y, (2) 1.5” tall FJ2427E and (2) 3” tall FJ2428E. | D72: RJ9100YM | E72: ACC. | F72: AC | G72: 8024 | H72: 0.25 | I72: =Table8[[#This Row],[GOV List Price]]*(1-Table8[[#This Row],[NASPO Discount]]) -> 6018 | J72: Yes
A73: RJ9000Y-1BK | B73: RJ9000Y-1BK | C73: Rolling Jack, 9000 lb. For SM181 Only | D73: RJ9000Y-1 | E73: ACC. | F73: AC | G73: 7988 | H73: 0.25 | I73: =Table8[[#This Row],[GOV List Price]]*(1-Table8[[#This Row],[NASPO Discount]]) -> 5991 | J73: Yes
A74: RJ9000Y-2BK | B74: RJ9000Y-2BK | C74: Rolling Jack, 9000 lb. For SM30 Lifts. For Passenger Cars Trucks Only. | D74: RJ9000Y-2 | E74: ACC. | F74: AC | G74: 8907 | H74: 0.25 | I74: =Table8[[#This Row],[GOV List Price]]*(1-Table8[[#This Row],[NASPO Discount]]) -> 6680.25 | J74: Yes
A75: VSJ30PRU | B75: VSJ30PRU | C75: Rolling Jack, 7,000 lb for X14 and XA14 | D75: VSJ30PRU | E75: ACCS | F75: WA | G75: 7194 | H75: 0.25 | I75: =Table8[[#This Row],[GOV List Price]]*(1-Table8[[#This Row],[NASPO Discount]]) -> 5395.5 | J75: Yes
A76: RJ152BK | B76: RJ152BK | C76: Heavy Duty Rolling Jack, 15,000 lb. For SM30, Series Lifts. S/T RJ150 but with a lower profile top and drop in adapters. | D76: RJ152BK | E76: ACC. | F76: AC | G76: 18464 | H76: 0.25 | I76: =Table8[[#This Row],[GOV List Price]]*(1-Table8[[#This Row],[NASPO Discount]]) -> 13848 | J76: Yes
A77: S100077Kit | B77: S100077Kit | C77: Efficiency package includes (2) RJ7000 and Airline Kit (uninstalled) for SM/SMO14. | D77: S100077 | E77: ACC. | F77: AC | G77: 14912 | H77: 0.25 | I77: =Table8[[#This Row],[GOV List Price]]*(1-Table8[[#This Row],[NASPO Discount]]) -> 11184 | J77: Yes
A78: S100016 | B78: S100016BL | C78: Efficiency package, (2) RJ6000 Rolling Bridges, FA5501-1 Bolt-On Alignment Package | D78: S100016 | E78: ACC. | F78: AC | G78: 19323 | H78: 0.25 | I78: =Table8[[#This Row],[GOV List Price]]*(1-Table8[[#This Row],[NASPO Discount]]) -> 14492.25 | J78: Yes
A79: S100017 | B79: S100017BL | C79: Efficiency package includes Two (2) RJ6000 Rolling Bridges, Airline Kit (uninstalled), bolt-on alignment package and stainless steel radius gauge for SM/SMO123. | D79: S100017 | E79: ACC. | F79: AC | G79: 21450 | H79: 0.25 | I79: =Table8[[#This Row],[GOV List Price]]*(1-Table8[[#This Row],[NASPO Discount]]) -> 16087.5 | J79: Yes
A80: SB700071Y | B80: SB700071Y | C80: Adapter, polymer,1/2". Included in FJ2498 kit. | D80: SB700071Y | E80: ACC. | F80: AC | G80: 32 | H80: 0.25 | I80: =Table8[[#This Row],[GOV List Price]]*(1-Table8[[#This Row],[NASPO Discount]]) -> 24 | J80: Yes
A81: FJ2427 | B81: FJ2427 | C81: Adapter, polymer, 1-1/2". Included in FJ2439 kit. | D81: FJ2427 | E81: ACC. | F81: AC | G81: 40 | H81: 0.25 | I81: =Table8[[#This Row],[GOV List Price]]*(1-Table8[[#This Row],[NASPO Discount]]) -> 30 | J81: Yes
A82: FJ2428 | B82: FJ2428 | C82: Adapter, polymer, 3". Included in FJ2440 kit. | D82: FJ2428 | E82: ACC. | F82: AC | G82: 54 | H82: 0.25 | I82: =Table8[[#This Row],[GOV List Price]]*(1-Table8[[#This Row],[NASPO Discount]]) -> 40.5 | J82: Yes
A83: SB100040YL | B83: SB100040YL | C83: Adapter kit, extended height, SUV straight axle. Kit includes (2) 7” Adapters. For RJ9000Y. | D83: SB100040YL | E83: ACC. | F83: AC | G83: 282 | H83: 0.25 | I83: =Table8[[#This Row],[GOV List Price]]*(1-Table8[[#This Row],[NASPO Discount]]) -> 211.5 | J83: Yes
A84: SB100017YL | B84: SB100017YL | C84: Adapter kit, extended height, SUV straight axle. Kit includes (2) SB300055 7” Adapters. For RJ7000. | D84: SB100017 | E84: ACC. | F84: AC | G84: 282 | H84: 0.25 | I84: =Table8[[#This Row],[GOV List Price]]*(1-Table8[[#This Row],[NASPO Discount]]) -> 211.5 | J84: Yes
A85: SB100003YL | B85: SB100003YL | C85: Adapter kit, extended height, SUV straight axle. Kit includes (2) SB300019 7” Adapters. For RJ6000. | D85: SB100003 | E85: ACC. | F85: AC | G85: 282 | H85: 0.25 | I85: =Table8[[#This Row],[GOV List Price]]*(1-Table8[[#This Row],[NASPO Discount]]) -> 211.5 | J85: Yes
A86: FJ6211BK | B86: FJ6211BK | C86: Adapters, extended, pad lifts. Includes (4) FJ6205 7” truck adapters. | D86: FJ6211 | E86: ACC. | F86: AC | G86: 622 | H86: 0.25 | I86: =Table8[[#This Row],[GOV List Price]]*(1-Table8[[#This Row],[NASPO Discount]]) -> 466.5 | J86: Yes
A87: S100151 | B87: S100151BL | C87: Ramp chock kit, drive-thru, SM/SMO/ARO14 -100 Series, SM101. Includes Two (2) S110405Y Ramps (40-1/2”) and (2) Hinge Pins. | D87: S100151BL | E87: ACC. | F87: AC | G87: 1238 | H87: 0.25 | I87: =Table8[[#This Row],[GOV List Price]]*(1-Table8[[#This Row],[NASPO Discount]]) -> 928.5 | J87: Yes
A88: S100152Y | B88: S100152YBL | C88: Ramp chock kit, extended, SM/SMO/ARO14 -100, SM101. Includes Two (2) S110406Y Ramps (49-7/16”) and (2) Hinge Pins. ($160 Adder Only When Substituted For Standard Length Ramps On New Lift Order.) | D88: S100152YBL | E88: ACC. | F88: AC | G88: 1274 | H88: 0.25 | I88: =Table8[[#This Row],[GOV List Price]]*(1-Table8[[#This Row],[NASPO Discount]]) -> 955.5 | J88: Yes
A89: S100013 | B89: S100013BL | C89: Ramp chock kit, extended, SM/AR18. Includes Two (2) S110085 Ramps and (2) Hinge Pins. ($160 Adder Only When Substituted For Standard Length Ramps On New Lift Order.) | D89: S100013 | E89: ACC. | F89: AC | G89: 1760 | H89: 0.25 | I89: =Table8[[#This Row],[GOV List Price]]*(1-Table8[[#This Row],[NASPO Discount]]) -> 1320 | J89: Yes
A90: FC5825BK | B90: FC5825BK | C90: Ramp chock Kit, drive-thru, SM18. Includes Two (2) FC5810-43 Ramps and (2) Hinge Pins. | D90: FC5825 | E90: ACC. | F90: AC | G90: 1622 | H90: 0.25 | I90: =Table8[[#This Row],[GOV List Price]]*(1-Table8[[#This Row],[NASPO Discount]]) -> 1216.5 | J90: Yes
A91: FC5780-3 | B91: FC5780-3BL | C91: Ramp chock, drive thru, SM300-200, SM30 Series Lifts QTY OF ONE | D91: FC5780-3 | E91: ACC. | F91: AC | G91: 996 | H91: 0.25 | I91: =Table8[[#This Row],[GOV List Price]]*(1-Table8[[#This Row],[NASPO Discount]]) -> 747 | J91: Yes
A92: FC5781-7 | B92: FC5781-7BL | C92: Ramp chock, extended, SM300-200. QTY 1 $733 adder when ordered with lift | D92: FC5781-7 | E92: ACC. | F92: AC | G92: 1609 | H92: 0.25 | I92: =Table8[[#This Row],[GOV List Price]]*(1-Table8[[#This Row],[NASPO Discount]]) -> 1206.75 | J92: Yes
A93: FC663BK | B93: FC663BK | C93: Jack tray, rolling SM/SMO122, SM/SMO123, SM/SM014. (Bottle Jacks Are Not Included) | D93: FC663 | E93: ACC. | F93: AC | G93: 1178 | H93: 0.25 | I93: =Table8[[#This Row],[GOV List Price]]*(1-Table8[[#This Row],[NASPO Discount]]) -> 883.5 | J93: Yes
A94: FC613BK | B94: FC613BK | C94: Jack tray, rolling, SM30. (Bottle Jacks Not Included) | D94: FC613 | E94: ACC. | F94: AC | G94: 6121 | H94: 0.25 | I94: =Table8[[#This Row],[GOV List Price]]*(1-Table8[[#This Row],[NASPO Discount]]) -> 4590.75 | J94: Yes
A95: FC5378BK | B95: FC5378BK | C95: Work steps, bolt-on, 4-post | D95: FC5378 | E95: ACC. | F95: AC | G95: 1184 | H95: 0.25 | I95: =Table8[[#This Row],[GOV List Price]]*(1-Table8[[#This Row],[NASPO Discount]]) -> 888 | J95: Yes
A96: FC5967BK | B96: FC5967BK | C96: Drain pan, 30 Gallon rolling, low profile, QL4P, SM/SMO122, SM/SMO14, SM18, YA-12 at 43” setting | D96: FC5967 | E96: ACC. | F96: AC | G96: 1830 | H96: 0.25 | I96: =Table8[[#This Row],[GOV List Price]]*(1-Table8[[#This Row],[NASPO Discount]]) -> 1372.5 | J96: Yes
A97: FC5968BK | B97: FC5968BK | C97: Drain pan, 30 Gallon rolling, SM30 | D97: FC5968BK | E97: ACC. | F97: AC | G97: 2378 | H97: 0.25 | I97: =Table8[[#This Row],[GOV List Price]]*(1-Table8[[#This Row],[NASPO Discount]]) -> 1783.5 | J97: Yes
A98: FC5247 | B98: FC5247 | C98: Hose, 8 ft oil drain w/QD fitting | D98: FC5247 | E98: ACC. | F98: AC | G98: 234 | H98: 0.25 | I98: =Table8[[#This Row],[GOV List Price]]*(1-Table8[[#This Row],[NASPO Discount]]) -> 175.5 | J98: Yes
A99: FC5760-14 | B99: FC5760-14 | C99: Internal Air Line Kit (retrofit) for all SM/SMO14 Series, SM18, QL12 and Y-Lift | D99: FC5760-14 | E99: ACC. | F99: AC | G99: 879 | H99: 0.25 | I99: =Table8[[#This Row],[GOV List Price]]*(1-Table8[[#This Row],[NASPO Discount]]) -> 659.25 | J99: Yes
A100: FC7138 | B100: FC7138 | C100: Internal Air Line Kit (retrofit) for all X14 and XA14 | D100: FC7138 | E100: ACC. | F100: AC | G100: 901 | H100: 0.25 | I100: =Table8[[#This Row],[GOV List Price]]*(1-Table8[[#This Row],[NASPO Discount]]) -> 675.75 | J100: Yes
A101: FC5393BK | B101: FC5393KITBK | C101: Shim kit, 1/4”, SM/SMO, AR/ARO123, QL Models, SM18, SM30 4" OF SHIMS | D101: FC5393 | E101: ACC. | F101: AC | G101: 535 | H101: 0.25 | I101: =Table8[[#This Row],[GOV List Price]]*(1-Table8[[#This Row],[NASPO Discount]]) -> 401.25 | J101: Yes
A102: FC5414 | B102: FC5414BK | C102: Shim kit, 1/4”, SM/SMO, AR/ARO123, QL Models, SM18, SM30 8" OF SHIMS | D102: FC5414 | E102: ACC. | F102: AC | G102: 775 | H102: 0.25 | I102: =Table8[[#This Row],[GOV List Price]]*(1-Table8[[#This Row],[NASPO Discount]]) -> 581.25 | J102: Yes
A103: S100093 | B103: S100093BK | C103: Shim kit, front Of SMO14/ARO14, (2) 1/4” & (4) 1/16” Shims. | D103: S100093BK | E103: ACC. | F103: AC | G103: 431 | H103: 0.25 | I103: =Table8[[#This Row],[GOV List Price]]*(1-Table8[[#This Row],[NASPO Discount]]) -> 323.25 | J103: Yes
A104: FA5211 | B104: FA5211 | C104: Turntable, 7500 lb SS | D104: FA5211 | E104: ACC. | F104: AC | G104: 2615 | H104: 0.25 | I104: =Table8[[#This Row],[GOV List Price]]*(1-Table8[[#This Row],[NASPO Discount]]) -> 1961.25 | J104: Yes
A105: FA5211KIT | B105: FA5211KIT | C105: Turntable kit, 7500 lb | D105: FA5211KIT | E105: ACC. | F105: AC | G105: 5101 | H105: 0.25 | I105: =Table8[[#This Row],[GOV List Price]]*(1-Table8[[#This Row],[NASPO Discount]]) -> 3825.75 | J105: Yes
A106: TT1001 | B106: TT1001KIT | C106: Radius gauge kit, 3000 lb, SS. Includes (2) FA5153 S/S radius gauges; and (4) Retaining Bars -- Part # FA5153-1. | D106: TT1001KIT | E106: ACC. | F106: AC | G106: 3363 | H106: 0.25 | I106: =Table8[[#This Row],[GOV List Price]]*(1-Table8[[#This Row],[NASPO Discount]]) -> 2522.25 | J106: Yes
A107: FA5155KIT | B107: FA5155KIT | C107: Radius gauge kit, 3000 lb. Includes (2) Standard Turning Radius Gauges--Part #FA5157; and (4) Retaining Bars--Part #FA5153-1. | D107: FA5155 | E107: ACC. | F107: AC | G107: 2345 | H107: 0.25 | I107: =Table8[[#This Row],[GOV List Price]]*(1-Table8[[#This Row],[NASPO Discount]]) -> 1758.75 | J107: Yes
A108: S130205 | B108: S130205 | C108: Radius gauge, 4500 lb, no pointer, SS (2 required) | D108: S130205 | E108: ACC. | F108: AC | G108: 1421 | H108: 0.25 | I108: =Table8[[#This Row],[GOV List Price]]*(1-Table8[[#This Row],[NASPO Discount]]) -> 1065.75 | J108: Yes
A109: S130237 | B109: S130237 | C109: Radius gauge, AR18, no pointer, SS (2 required) | D109: S130237 | E109: ACC. | F109: AC | G109: 1670 | H109: 0.25 | I109: =Table8[[#This Row],[GOV List Price]]*(1-Table8[[#This Row],[NASPO Discount]]) -> 1252.5 | J109: Yes
A110: S100147 | B110: S100147 | C110: Shield kit, rear SS, AR/ARO14 -100 Series | D110: S100147 | E110: ACC. | F110: AC | G110: 2652 | H110: 0.25 | I110: =Table8[[#This Row],[GOV List Price]]*(1-Table8[[#This Row],[NASPO Discount]]) -> 1989 | J110: Yes
A111: S100148 | B111: S100148 | C111: Shield kit, front SS, AR/ARO14 -100 Series | D111: S100148 | E111: ACC. | F111: AC | G111: 2380 | H111: 0.25 | I111: =Table8[[#This Row],[GOV List Price]]*(1-Table8[[#This Row],[NASPO Discount]]) -> 1785 | J111: Yes
A112: S100096 | B112: S100096 | C112: Shield kit, rear SS, AR/ARO14 | D112: S100096 | E112: ACC. | F112: AC | G112: 2652 | H112: 0.25 | I112: =Table8[[#This Row],[GOV List Price]]*(1-Table8[[#This Row],[NASPO Discount]]) -> 1989 | J112: Yes
A113: S100095 | B113: S100095 | C113: Shield kit, front SS, AR/ARO14 | D113: S100095 | E113: ACC. | F113: AC | G113: 2380 | H113: 0.25 | I113: =Table8[[#This Row],[GOV List Price]]*(1-Table8[[#This Row],[NASPO Discount]]) -> 1785 | J113: Yes
A114: FC7118 | B114: FC7118 | C114: Shield kit, rear SS, AR/ARO12 | D114: FC7118 | E114: ACC. | F114: AC | G114: 2071 | H114: 0.25 | I114: =Table8[[#This Row],[GOV List Price]]*(1-Table8[[#This Row],[NASPO Discount]]) -> 1553.25 | J114: Yes
A115: S100052 | B115: S100052 | C115: Shield kit, front SS AR/ARO12 | D115: S100052 | E115: ACC. | F115: AC | G115: 2380 | H115: 0.25 | I115: =Table8[[#This Row],[GOV List Price]]*(1-Table8[[#This Row],[NASPO Discount]]) -> 1785 | J115: Yes
A116: FA647 | B116: FA647BL | C116: Runway extension, 2 ft, SM/SMO 12,000 lb | D116: FA647 | E116: ACC. | F116: AC | G116: 1228 | H116: 0.25 | I116: =Table8[[#This Row],[GOV List Price]]*(1-Table8[[#This Row],[NASPO Discount]]) -> 921 | J116: Yes
A117: S100060 | B117: S100060BL | C117: Runway extension, 2 ft, SM/SMO 14,000 lb. | D117: S100060 | E117: ACC. | F117: AC | G117: 1638 | H117: 0.25 | I117: =Table8[[#This Row],[GOV List Price]]*(1-Table8[[#This Row],[NASPO Discount]]) -> 1228.5 | J117: Yes
A118: S100142YBL | B118: S100142YBL | C118: Runway extension, 2 ft for SM14-100 | D118: S100142YBL | E118: ACC. | F118: AC | G118: 1638 | H118: 0.25 | I118: =Table8[[#This Row],[GOV List Price]]*(1-Table8[[#This Row],[NASPO Discount]]) -> 1228.5 | J118: Yes
A119: S100012 | B119: S100012BL | C119: Runway extension, 2 ft SM18/180 | D119: S100012 | E119: ACC. | F119: AC | G119: 1638 | H119: 0.25 | I119: =Table8[[#This Row],[GOV List Price]]*(1-Table8[[#This Row],[NASPO Discount]]) -> 1228.5 | J119: Yes
A120: S100018 | B120: S100018BL | C120: Runway extension, 3 ft SM300-200/300, SM30 | D120: S100018 | E120: ACC. | F120: AC | G120: 3455 | H120: 0.25 | I120: =Table8[[#This Row],[GOV List Price]]*(1-Table8[[#This Row],[NASPO Discount]]) -> 2591.25 | J120: Yes
A121: FA641-18 | B121: FA641-18BL | C121: Runway extension, 3 ft SM300-100 | D121: FA641-18 | E121: ACC. | F121: AC | G121: 4670 | H121: 0.25 | I121: =Table8[[#This Row],[GOV List Price]]*(1-Table8[[#This Row],[NASPO Discount]]) -> 3502.5 | J121: Yes
A122: ARO14L | B122: ARO14N101YBL | C122: Lift, 4-post 14,000 lb alignment, open front, 182" max wheel base | D122: ARO14T | E122: 0 | F122: 0 | G122: 46818 | H122: =$H$1 -> 0.41 | I122: =Table8[[#This Row],[GOV List Price]]*(1-Table8[[#This Row],[NASPO Discount]]) -> 27622.62 | J122: No
A123: ARO14-EL2 | B123: ARO14N102TYBL | C123: Lift, 4-post 14,000 lb alignment, open front, 215" max wheel base | D123: ARO14T | E123: LIGHT DUTY | F123: LS | G123: 47641 | H123: 0.41 | I123: =Table8[[#This Row],[GOV List Price]]*(1-Table8[[#This Row],[NASPO Discount]]) -> 28108.19 | J123: No
A124: AR18 | B124: AR18N110BL | C124: Lift, 4-post 18,000 lb alignment, 194" max wheel base | D124: AR18 | E124: CROSS-OVER | F124: CL | G124: 49770 | H124: 0.41 | I124: =Table8[[#This Row],[GOV List Price]]*(1-Table8[[#This Row],[NASPO Discount]]) -> 29364.3 | J124: No
A125: AR18-EL | B125: AR18N111BL | C125: Lift, 4-post 18,000 lb alignment, 230 max wheel base | D125: AR18 | E125: CROSS-OVER | F125: CL | G125: 53494 | H125: 0.41 | I125: =Table8[[#This Row],[GOV List Price]]*(1-Table8[[#This Row],[NASPO Discount]]) -> 31561.46 | J125: No
A126: ARO14L-SW | B126: ARO14U101YBL | C126: Lift, 4-post 14,000 lb alignment, open front SW, 182" max wheel base SW | D126: ARO14T | E126: 0 | F126: 0 | G126: 50163 | H126: 0.41 | I126: =Table8[[#This Row],[GOV List Price]]*(1-Table8[[#This Row],[NASPO Discount]]) -> 29596.17 | J126: No
A127: ARO14-EL2-SW | B127: ARO14U102TYBL | C127: Lift, 4-post 14,000 lb alignment, open front SW, 215" max wheel base SW | D127: ARO14T | E127: LIGHT DUTY | F127: PS | G127: 50985 | H127: 0.41 | I127: =Table8[[#This Row],[GOV List Price]]*(1-Table8[[#This Row],[NASPO Discount]]) -> 30081.15 | J127: No
A128: S100130-L | B128: S100130MBL | C128: Alignment kit, bolt-on SM/SMO14-100 Series w/SS radius gauges, slip plates 182" WB | D128: S100130MBL | E128: ACC. | F128: AC | G128: 12875 | H128: 0.25 | I128: =Table8[[#This Row],[GOV List Price]]*(1-Table8[[#This Row],[NASPO Discount]]) -> 9656.25 | J128: No
A129: S100131-EL2 | B129: S100131MBL | C129: Alignment kit, bolt-on SM/SMO14-100 Series w/SS radius gauges, slip plates 215" WB | D129: S100131MBL | E129: ACC. | F129: AC | G129: 13715 | H129: 0.25 | I129: =Table8[[#This Row],[GOV List Price]]*(1-Table8[[#This Row],[NASPO Discount]]) -> 10286.25 | J129: No
A130: S100136-L | B130: S100136MBL | C130: Alignment kit, bolt-on SM/SMO14-100 Series w/slip plates 182" WB | D130: S100136MBL | E130: ACC. | F130: AC | G130: 6408 | H130: 0.25 | I130: =Table8[[#This Row],[GOV List Price]]*(1-Table8[[#This Row],[NASPO Discount]]) -> 4806 | J130: No
A131: S100171 | B131: S100171BL | C131: Alignment Bolt On SM/SMO14 Series | D131: S100171BL | E131: ACC. | F131: AC | G131: 16507 | H131: 0.25 | I131: =Table8[[#This Row],[GOV List Price]]*(1-Table8[[#This Row],[NASPO Discount]]) -> 12380.25 | J131: No
A132: S100137-EL2 | B132: S100137MBL | C132: Alignment kit, bolt-on SM/SMO14-100 Series w/slip plates 215" WB | D132: S100137MBL | E132: ACC. | F132: AC | G132: 7265 | H132: 0.25 | I132: =Table8[[#This Row],[GOV List Price]]*(1-Table8[[#This Row],[NASPO Discount]]) -> 5448.75 | J132: No
A133: S100182 | B133: S100182BL | C133: Alignment kit, bolt-on SM18 w/SS steel radius gauges, slip plates 194" WB | D133: S100182BL | E133: ACC. | F133: AC | G133: 11073 | H133: 0.25 | I133: =Table8[[#This Row],[GOV List Price]]*(1-Table8[[#This Row],[NASPO Discount]]) -> 8304.75 | J133: No
A134: S100181 | B134: S100181BL | C134: Alignment kit, bolt-on SM18-EL2 w/SS steel radius gauges, slip plates 230" WB | D134: S100181BL | E134: ACC. | F134: AC | G134: 11256 | H134: 0.25 | I134: =Table8[[#This Row],[GOV List Price]]*(1-Table8[[#This Row],[NASPO Discount]]) -> 8442 | J134: No
A135: FA5501-1 | B135: FA5501-1BL | C135: Alignment kit, Smart Lift DOR style lift. Kit consists of Bolt-on Kit, front turning Stainless Steel Radius Gauge Kit, rear slip plate kit, leveling legs, and all necessary hardware (drilling and tapping required). Recommended for use with (2) Rolling Jacks for performing 4-Wheel Alignment. FC7117 kit. | D135: FA5501-1 | E135: ACC. | F135: AC | G135: 7877 | H135: 0.25 | I135: =Table8[[#This Row],[GOV List Price]]*(1-Table8[[#This Row],[NASPO Discount]]) -> 5907.75 | J135: No
A136: FC7125 | B136: FC7125BL | C136: A Wheel Alignment w/ Rollback Conversion Package For SM30 Series Lifts Including: (1) FC5394 Heavy Duty Carbon Steel Turntables (Pair) And Guides; (2) Front/Rear Rollback Plates; (1) FC5395 Heavy Duty Bolt On Work Step Kit; Recoil Hose; Necessary Hardware And Instructions. (Drilling Required.) | D136: FC7125BL | E136: ACC. | F136: AC | G136: 11517 | H136: 0.25 | I136: =Table8[[#This Row],[GOV List Price]]*(1-Table8[[#This Row],[NASPO Discount]]) -> 8637.75 | J136: No
A137: FC7117 Kit | B137: PK304FC7117Y | C137: Filler adapter kit, alignment rack | D137: PK304FC711 | E137: ACC. | F137: AC | G137: 95 | H137: 0.25 | I137: =Table8[[#This Row],[GOV List Price]]*(1-Table8[[#This Row],[NASPO Discount]]) -> 71.25 | J137: Yes
A138: R1070 Pro CCD | B138: RWA7080WS | C138: 8-CCD sensor wheel alignment with infra-red transmission among measuring heads | D138: RWA7080 | E138: CHANGER/BAL/ALIGNERS | F138: WS | G138: 24906 | H138: =$H$1 -> 0.41 | I138: =Table8[[#This Row],[GOV List Price]]*(1-Table8[[#This Row],[NASPO Discount]]) -> 14694.54 | J138: Yes
A139: R1085 | B139: RWA3D1085 | C139: Portable 3D Wheel Aligner System | D139: RWA1085 | E139: CHANGER/BAL/ALIGNERS | F139: WS | G139: 33702 | H139: =$H$1 -> 0.41 | I139: =Table8[[#This Row],[GOV List Price]]*(1-Table8[[#This Row],[NASPO Discount]]) -> 19884.18 | J139: Yes
A140: R1090 | B140: RWA3D1090 | C140: Portable 3D Wheel Aligner System | D140: RWA1090 | E140: CHANGER/BAL/ALIGNERS | F140: WS | G140: 41474 | H140: 0.41 | I140: =Table8[[#This Row],[GOV List Price]]*(1-Table8[[#This Row],[NASPO Discount]]) -> 24469.66 | J140: Yes
A141: R5000HD CTAPRO | B141: RWA8060TWS | C141: Commercial Truck Aligner | D141: RWA8060TWS | E141: CHANGER/BAL/ALIGNERS | F141: WS | G141: 54671 | H141: 0.41 | I141: =Table8[[#This Row],[GOV List Price]]*(1-Table8[[#This Row],[NASPO Discount]]) -> 32255.89 | J141: Yes
A142: STDA117 | B142: STDA117 | C142: Set of two sensor support kits for model R1080 | D142: STDA117 | E142: ACCS | F142: WA | G142: 493 | H142: 0.25 | I142: =Table8[[#This Row],[GOV List Price]]*(1-Table8[[#This Row],[NASPO Discount]]) -> 369.75 | J142: Yes
A143: XA14 | B143: XA14N0110BL | C143: Surface mounted lift, 14,000 lb alignment, 198" max wheel base, air locking rear slip-plates, jacks and internal air included. | D143: 0 | E143: 0 | F143: 0 | G143: 57141 | H143: =$H$1 -> 0.41 | I143: =Table8[[#This Row],[GOV List Price]]*(1-Table8[[#This Row],[NASPO Discount]]) -> 33713.19 | J143: Yes
A144: XA14-FM | B144: XA14N0111BL | C144: Flush mount lift, 14,000 lb alignment, 198" max wheel base, air locking rear slip-plates, jacks and internal air included. | D144: 0 | E144: 0 | F144: 0 | G144: 57141 | H144: =$H$1 -> 0.41 | I144: =Table8[[#This Row],[GOV List Price]]*(1-Table8[[#This Row],[NASPO Discount]]) -> 33713.19 | J144: Yes
A145: Z100006 | B145: Z100006BL | C145: Ramps, rear, extended (add $160 when ordering with lift in place of standard ramps). | D145: Z100006BL | E145: ACC. | F145: AC | G145: 1507 | H145: 0.25 | I145: =Table8[[#This Row],[GOV List Price]]*(1-Table8[[#This Row],[NASPO Discount]]) -> 1130.25 | J145: Yes
A146: Z100007 | B146: Z100007BL | C146: Ramps, rear, flush (add $160 when ordering with lift in place of standard ramps). | D146: Z100007BL | E146: ACC. | F146: AC | G146: 1507 | H146: 0.25 | I146: =Table8[[#This Row],[GOV List Price]]*(1-Table8[[#This Row],[NASPO Discount]]) -> 1130.25 | J146: Yes
A147: Z100008 | B147: Z100008BL | C147: Ramps, front, standard drive thru, 54" | D147: Z100008BL | E147: ACC. | F147: AC | G147: 1479 | H147: 0.25 | I147: =Table8[[#This Row],[GOV List Price]]*(1-Table8[[#This Row],[NASPO Discount]]) -> 1109.25 | J147: Yes
A148: Z100009 | B148: Z100009BL | C148: Ramps, front, extended drive thru, 70" | D148: Z100009BL | E148: ACC. | F148: AC | G148: 1538 | H148: 0.25 | I148: =Table8[[#This Row],[GOV List Price]]*(1-Table8[[#This Row],[NASPO Discount]]) -> 1153.5 | J148: Yes
A149: Z100010 | B149: Z100010BL | C149: Ramps, flush front drive thru | D149: Z100010BL | E149: ACC. | F149: AC | G149: 1538 | H149: 0.25 | I149: =Table8[[#This Row],[GOV List Price]]*(1-Table8[[#This Row],[NASPO Discount]]) -> 1153.5 | J149: Yes
A150: Z100011 | B150: Z100011BL | C150: Slip plate refurbish kit, rear | D150: Z100011BL | E150: PARTS | F150: AP | G150: 2652 | H150: 0.25 | I150: =Table8[[#This Row],[GOV List Price]]*(1-Table8[[#This Row],[NASPO Discount]]) -> 1989 | J150: Yes
A151: Z100012 | B151: Z100012BK | C151: Shim kit, 2 1/4" total | D151: Z100012BK | E151: ACC. | F151: AC | G151: 702 | H151: 0.25 | I151: =Table8[[#This Row],[GOV List Price]]*(1-Table8[[#This Row],[NASPO Discount]]) -> 526.5 | J151: Yes
A152: Z100013 | B152: Z100013BK | C152: Shim kit, 2" total | D152: Z100013BK | E152: ACC. | F152: AC | G152: 702 | H152: 0.25 | I152: =Table8[[#This Row],[GOV List Price]]*(1-Table8[[#This Row],[NASPO Discount]]) -> 526.5 | J152: Yes
A153: Z100014 | B153: Z100014 | C153: Slip plate base kit, rear, SS | D153: Z100014 | E153: ACC. | F153: AC | G153: 7042 | H153: 0.25 | I153: =Table8[[#This Row],[GOV List Price]]*(1-Table8[[#This Row],[NASPO Discount]]) -> 5281.5 | J153: Yes
A154: Z100017 | B154: Z100017KITYL | C154: Hose relocate kit | D154: Z100017KIT | E154: ACC. | F154: AC | G154: 771 | H154: 0.25 | I154: =Table8[[#This Row],[GOV List Price]]*(1-Table8[[#This Row],[NASPO Discount]]) -> 578.25 | J154: Yes
A155: Z100020 | B155: Z100020BK | C155: Spacer tool | D155: Z100020BK | E155: ACC. | F155: AC | G155: 210 | H155: 0.25 | I155: =Table8[[#This Row],[GOV List Price]]*(1-Table8[[#This Row],[NASPO Discount]]) -> 157.5 | J155: Yes
A156: FA5157 | B156: FA5157KIT | C156: Radius gauge, carbon steel QTY OF ONE | D156: FA5157 | E156: ACC. | F156: AC | G156: 1366 | H156: 0.25 | I156: =Table8[[#This Row],[GOV List Price]]*(1-Table8[[#This Row],[NASPO Discount]]) -> 1024.5 | J156: Yes
A157: Z100022 | B157: Z100022BL | C157: Radius gauge filler kit, Y-Lift | D157: Z100022BL | E157: ACC. | F157: AC | G157: 635 | H157: 0.25 | I157: =Table8[[#This Row],[GOV List Price]]*(1-Table8[[#This Row],[NASPO Discount]]) -> 476.25 | J157: Yes
A158: RLP77 | B158: RLP77N0000MBL | C158: Lift, double scissor Fixed Pad. Available in colors of blue, red and black. | D158: RLP77 | E158: LIGHT DUTY | F158: LS | G158: 24901 | H158: =$H$1 -> 0.41 | I158: =Table8[[#This Row],[GOV List Price]]*(1-Table8[[#This Row],[NASPO Discount]]) -> 14691.59 | J158: Yes
A159: XX100018 | B159: XX100018 | C159: Hose kit 4.5' extension (1.5mm). | D159: XX100018 | E159: ACC. | F159: AC | G159: 218 | H159: 0.25 | I159: =Table8[[#This Row],[GOV List Price]]*(1-Table8[[#This Row],[NASPO Discount]]) -> 163.5 | J159: Yes
A160: XX100019 | B160: XX100019 | C160: Hose kit 8' extension (2.5mm). | D160: XX100019 | E160: ACC. | F160: AC | G160: 259 | H160: 0.25 | I160: =Table8[[#This Row],[GOV List Price]]*(1-Table8[[#This Row],[NASPO Discount]]) -> 194.25 | J160: Yes
A161: XX100032 | B161: XX100032YL | C161: Long Ramp Kit | D161: XX100032YL | E161: ACC. | F161: AC | G161: 2113 | H161: 0.25 | I161: =Table8[[#This Row],[GOV List Price]]*(1-Table8[[#This Row],[NASPO Discount]]) -> 1584.75 | J161: Yes
A162: XX100003BK | B162: XX100003BK | C162: Flush mount kit. | D162: XX100003BK | E162: ACC. | F162: AC | G162: 957 | H162: 0.25 | I162: =Table8[[#This Row],[GOV List Price]]*(1-Table8[[#This Row],[NASPO Discount]]) -> 717.75 | J162: Yes
A163: VLXS10 | B163: VLXS10000BL | C163: Lift, 10,000 lb fixed pad low rise | D163: 0 | E163: 0 | F163: 0 | G163: 9478 | H163: =$H$1 -> 0.41 | I163: =Table8[[#This Row],[GOV List Price]]*(1-Table8[[#This Row],[NASPO Discount]]) -> 5592.02 | J163: Yes
A164: N257KITYL | B164: N257KITYL | C164: Arm kit, TL07-200/400 Series to flip-up style | D164: N257 | E164: ACC. | F164: AC | G164: 2964 | H164: 0.25 | I164: =Table8[[#This Row],[GOV List Price]]*(1-Table8[[#This Row],[NASPO Discount]]) -> 2223 | J164: Yes
A165: N2206YL | B165: N2206YL | C165: Arm kit, TL07-500 Series to flip-up style | D165: N2206 | E165: ACC. | F165: AC | G165: 2964 | H165: 0.25 | I165: =Table8[[#This Row],[GOV List Price]]*(1-Table8[[#This Row],[NASPO Discount]]) -> 2223 | J165: Yes
A166: FJ5123YL | B166: FJ5123YL | C166: Rail Bolster Kit for SPO9-200/400 Series, 7000 lbs | D166: FJ5123 | E166: ACC. | F166: AC | G166: 8538 | H166: 0.25 | I166: =Table8[[#This Row],[GOV List Price]]*(1-Table8[[#This Row],[NASPO Discount]]) -> 6403.5 | J166: Yes
A167: FJ5204YL | B167: FJ5204YL | C167: Rail Bolster Kit for SPO10-500 Series and about, 7000 lbs | D167: FJ5204 | E167: ACC. | F167: AC | G167: 8538 | H167: 0.25 | I167: =Table8[[#This Row],[GOV List Price]]*(1-Table8[[#This Row],[NASPO Discount]]) -> 6403.5 | J167: Yes
A168: MW-200 | B168: MW-200 | C168: Wheel lift, 200 lbs air operated. Includes air hose and auxiliary air tool connection. | D168: MW-200 | E168: ACC. | F168: AC | G168: 3556 | H168: 0.25 | I168: =Table8[[#This Row],[GOV List Price]]*(1-Table8[[#This Row],[NASPO Discount]]) -> 2667 | J168: Yes
A169: MW-500 | B169: MW-500 | C169: Wheel lift, 500 lbs air operated. Includes air hose and auxiliary air tool connection. | D169: MW-500 | E169: ACC. | F169: AC | G169: 5873 | H169: 0.25 | I169: =Table8[[#This Row],[GOV List Price]]*(1-Table8[[#This Row],[NASPO Discount]]) -> 4404.75 | J169: Yes
A170: FA5310 | B170: FA5310 | C170: Crossbeam Kit, Movable Pad Lifts. Kit comes with (2) FA5306 Aluminum Crossbeams, (4) FJ2427E 1 1/2" and (4) FJ2428E 3" Rubber Pad Adapters and (4) FJ6211BK 7" Extended Height Adapters. | D170: FA5310 | E170: ACC. | F170: AC | G170: 3638 | H170: 0.25 | I170: =Table8[[#This Row],[GOV List Price]]*(1-Table8[[#This Row],[NASPO Discount]]) -> 2728.5 | J170: Yes
A171: FJ2498 | B171: FJ2498 | C171: Adapter kit, polymer pad, 1/2" . Includes (4) SB700071Yspacer blocks. | D171: FJ2498 | E171: ACC. | F171: AC | G171: 106 | H171: 0.25 | I171: =Table8[[#This Row],[GOV List Price]]*(1-Table8[[#This Row],[NASPO Discount]]) -> 79.5 | J171: Yes
A172: FJ2439 | B172: FJ2439 | C172: Adapter kit, polymer pad, 1 1/2". (Kit Includes (4) FJ2427E Adapters.) | D172: FJ2439 | E172: ACC. | F172: AC | G172: 138 | H172: 0.25 | I172: =Table8[[#This Row],[GOV List Price]]*(1-Table8[[#This Row],[NASPO Discount]]) -> 103.5 | J172: Yes
A173: FJ2440 | B173: FJ2440 | C173: Adapter kit, polymer pad, 3". Includes (4) FJ2428E spacer blocks. | D173: FJ2440 | E173: ACC. | F173: AC | G173: 197 | H173: 0.25 | I173: =Table8[[#This Row],[GOV List Price]]*(1-Table8[[#This Row],[NASPO Discount]]) -> 147.75 | J173: Yes
A174: S100046 | B174: S100046BK | C174: Power unit bracket to move power unit to front of column | D174: S100046 | E174: ACC. | F174: AC | G174: 69 | H174: 0.25 | I174: =Table8[[#This Row],[GOV List Price]]*(1-Table8[[#This Row],[NASPO Discount]]) -> 51.75 | J174: Yes
A175: S100130MBL | B175: S100130MBL | C175: Alignment bolt-on kit, RFP14-100 series | D175: S100130MBL | E175: ACC. | F175: AC | G175: 12875 | H175: 0.25 | I175: =Table8[[#This Row],[GOV List Price]]*(1-Table8[[#This Row],[NASPO Discount]]) -> 9656.25 | J175: Yes
A176: S100150YBL | B176: S100150YBL | C176: Ramps, drive-thru, RFP14 | D176: S100150YBL | E176: ACC. | F176: AC | G176: 1069 | H176: 0.25 | I176: =Table8[[#This Row],[GOV List Price]]*(1-Table8[[#This Row],[NASPO Discount]]) -> 801.75 | J176: Yes
A177: SH4D-5555 | B177: SH4D-5555 | C177: Drip tray, RFP9, (4) required for complete coverage | D177: SH4D-5555 | E177: ACC. | F177: AC | G177: 49 | H177: 0.25 | I177: =Table8[[#This Row],[GOV List Price]]*(1-Table8[[#This Row],[NASPO Discount]]) -> 36.75 | J177: Yes
A178: SH4D-6000G | B178: SH4D-6000G | C178: Ramp, drive-thru, RFP9 | D178: SH4D-6000G | E178: ACC. | F178: AC | G178: 252 | H178: 0.25 | I178: =Table8[[#This Row],[GOV List Price]]*(1-Table8[[#This Row],[NASPO Discount]]) -> 189 | J178: Yes
A179: SH4D-8050 | B179: SH4D-8050 | C179: Jack tray, RFP9 | D179: SH4D-8050 | E179: ACC. | F179: AC | G179: 328 | H179: 0.25 | I179: =Table8[[#This Row],[GOV List Price]]*(1-Table8[[#This Row],[NASPO Discount]]) -> 246 | J179: Yes
A180: SH4D-9000 | B180: SH4D-9000 | C180: Solid deck flooring panel, RFP9, requires (8) per lift | D180: SH4D-9000 | E180: ACC. | F180: AC | G180: 256 | H180: 0.25 | I180: =Table8[[#This Row],[GOV List Price]]*(1-Table8[[#This Row],[NASPO Discount]]) -> 192 | J180: Yes
A181: H4D-8000 | B181: H4D-8000 | C181: Solid deck flooring panel, RFP8, requires (8) per lift | D181: H4D-8000 | E181: ACC. | F181: AC | G181: 142 | H181: 0.25 | I181: =Table8[[#This Row],[GOV List Price]]*(1-Table8[[#This Row],[NASPO Discount]]) -> 106.5 | J181: Yes
A182: TPB10-D1 | B182: TPB10-D1 | C182: Door Bumper Kit includes (2) PV-3005 bumpers and hardware | D182: TPB10-D1 | E182: ACC. | F182: AC | G182: 104 | H182: 0.25 | I182: =Table8[[#This Row],[GOV List Price]]*(1-Table8[[#This Row],[NASPO Discount]]) -> 78 | J182: Yes
A183: T100285BK | B183: T100285BK | C183: Adapter kit, truck w/rack | D183: T100285BK | E183: ACC. | F183: AC | G183: 753 | H183: 0.25 | I183: =Table8[[#This Row],[GOV List Price]]*(1-Table8[[#This Row],[NASPO Discount]]) -> 564.75 | J183: Yes
A184: FJ6257 | B184: FJ6257KIT | C184: 3-Stage or 2-Stage Adapter (2) for 2019 GM Trucks, Revolution R10/RTP10 400 Series, Revolution R12/RTP12 300 Series | D184: FJ6257KIT | E184: ACC. | F184: AC | G184: 976 | H184: 0.25 | I184: =Table8[[#This Row],[GOV List Price]]*(1-Table8[[#This Row],[NASPO Discount]]) -> 732 | J184: Yes
A185: RJ35BK | B185: RJ35BK | C185: Rolling jack, 3500 lb | D185: RJ35 | E185: ACC. | F185: AC | G185: 1992 | H185: 0.25 | I185: =Table8[[#This Row],[GOV List Price]]*(1-Table8[[#This Row],[NASPO Discount]]) -> 1494 | J185: Yes
A186: RRJ45G | B186: RRJ45G | C186: Rolling jack, 4500 lb | D186: RRJ45G | E186: ACC. | F186: AC | G186: 2810 | H186: 0.25 | I186: =Table8[[#This Row],[GOV List Price]]*(1-Table8[[#This Row],[NASPO Discount]]) -> 2107.5 | J186: Yes
A187: RRJ70GBK | B187: RRJ71GBK | C187: Rolling jack, 7000 lb | D187: RRJ71GM | E187: 0 | F187: DA | G187: 5359 | H187: =$H$1 -> 0.41 | I187: =Table8[[#This Row],[GOV List Price]]*(1-Table8[[#This Row],[NASPO Discount]]) -> 3161.81 | J187: Yes
A188: M110108BK | B188: M110108BK | C188: Cart, fore and aft frame lifting kit for storage and moving. | D188: M110108BK | E188: ACC. | F188: AC | G188: 1674 | H188: 0.25 | I188: =Table8[[#This Row],[GOV List Price]]*(1-Table8[[#This Row],[NASPO Discount]]) -> 1255.5 | J188: Yes
A189: M140148BK | B189: M140148BK | C189: Light, 24VDC LED service lamp kit (2 rectangular lamps), MCH13 | D189: M140148BK | E189: ACC. | F189: AC | G189: 1541 | H189: 0.25 | I189: =Table8[[#This Row],[GOV List Price]]*(1-Table8[[#This Row],[NASPO Discount]]) -> 1155.75 | J189: Yes
A190: M140014 | B190: M140014 | C190: Service Chip for standard MCH’s ONLY (required to program MCH's). | D190: M140014 | E190: ACC. | F190: AC | G190: 89 | H190: 0.25 | I190: =Table8[[#This Row],[GOV List Price]]*(1-Table8[[#This Row],[NASPO Discount]]) -> 66.75 | J190: Yes
A191: M120304BK | B191: M120304BK | C191: Large wheel adapter (per column). Raises vehicle for greater access by lift forks. | D191: M120304BK | E191: ACC. | F191: AC | G191: 255 | H191: 0.25 | I191: =Table8[[#This Row],[GOV List Price]]*(1-Table8[[#This Row],[NASPO Discount]]) -> 191.25 | J191: Yes
A192: M140107 | B192: M140107 | C192: Analog Weight gauge for MCH13. | D192: M140107 | E192: ACC. | F192: AC | G192: 355 | H192: 0.25 | I192: =Table8[[#This Row],[GOV List Price]]*(1-Table8[[#This Row],[NASPO Discount]]) -> 266.25 | J192: Yes
A193: M140150 | B193: M140150BK | C193: Pallet Jack Assembly for a MCH Column. Black only. Will fit 13k-19k columns. | D193: M140150BK | E193: ACC. | F193: AC | G193: 694 | H193: 0.25 | I193: =Table8[[#This Row],[GOV List Price]]*(1-Table8[[#This Row],[NASPO Discount]]) -> 520.5 | J193: Yes
A194: SL210-MP8 | B194: SL210N8X0BL | C194: Lift, 8000 lb SmartLift w/moveable pads Includes (4) 3" FJ2428E, (4) 1-1/2" FJ2427E spacer blocks and the FJ2487E rubber pad kit. | D194: SL210 | E194: LIGHT DUTY | F194: PL | G194: 20319 | H194: =$H$1 -> 0.41 | I194: =Table8[[#This Row],[GOV List Price]]*(1-Table8[[#This Row],[NASPO Discount]]) -> 11988.21 | J194: Yes
A195: SL210-FA | B195: SL210N10G0BL | C195: Lift, 10,000 lb SmartLift w/flip-up adapters | D195: SL210 | E195: 0 | F195: 0 | G195: 20319 | H195: 0.41 | I195: =Table8[[#This Row],[GOV List Price]]*(1-Table8[[#This Row],[NASPO Discount]]) -> 11988.21 | J195: Yes
A196: SL210-RA | B196: SL210N10G0BL | C196: Lift, 10,000 lb SmartLift w/rubber adapters (To use with framed vehicles, also order T100273.) | D196: SL210 | E196: LIGHT DUTY | F196: PL | G196: 20319 | H196: 0.41 | I196: =Table8[[#This Row],[GOV List Price]]*(1-Table8[[#This Row],[NASPO Discount]]) -> 11988.21 | J196: Yes
A197: SL210-TA | B197: SL210N10T0BL | C197: Lift, 10,000 lb SmartLift w/truck adapters Includes (4) 3 1/2" T130660 extensions and (4) 5" T130661 extensions. | D197: SL210 | E197: LIGHT DUTY | F197: PL | G197: 20319 | H197: 0.41 | I197: =Table8[[#This Row],[GOV List Price]]*(1-Table8[[#This Row],[NASPO Discount]]) -> 11988.21 | J197: Yes
A198: SL212-TA | B198: SL212N1010BL | C198: Lift, 12,000 lb SmartLift w/truck adapters Includes (4) 3 1/2" T130660 extensions and (4) 5" T130661 extensions. | D198: SL212 | E198: LIGHT DUTY | F198: PL | G198: 26262 | H198: 0.41 | I198: =Table8[[#This Row],[GOV List Price]]*(1-Table8[[#This Row],[NASPO Discount]]) -> 15494.58 | J198: Yes
A199: SL210i-MP8 | B199: SL210IN8X0BL | C199: Lift, 8000 lb SmartLift w/moveable pads, inbay | D199: SL210I | E199: LIGHT DUTY | F199: PL | G199: 21162 | H199: 0.41 | I199: =Table8[[#This Row],[GOV List Price]]*(1-Table8[[#This Row],[NASPO Discount]]) -> 12485.58 | J199: Yes
A200: SL210i-FA | B200: SL210IN1000BL | C200: Lift, 10,000 lb SmartLift w/flip-up adapters, inbay | D200: SL210I | E200: LIGHT DUTY | F200: PL | G200: 18274 | H200: 0.41 | I200: =Table8[[#This Row],[GOV List Price]]*(1-Table8[[#This Row],[NASPO Discount]]) -> 10781.66 | J200: Yes
... 431 more rows
